Cogmind - Beta 14 @@@ ROGUE MODE // 2024.08.29 @ 01:32:53 Player: TheProctologist Result: Self-destructed Performance ------------- Evolutions (2) 1000 Regions Visited (5) 1000 Robots Destroyed (7) 35 Value Destroyed (181) 181 Prototype IDs (1) 20 Alien Tech Used (0) 0 Bonus (300) 300 TOTAL SCORE: 2536 Bonus ------- Aligned with FarCom 300 Cogmind --------- Core Integrity 492/550 Matter 262/300 Energy 52/100 System Corruption 0% Temperature Cool (-100) Movement Core (500) Ox9 Location -8/Materials Parts ------- > --- POWER (1) -------- (None) > --- PROPULSION (4) --- (None) > --- UTILITY (4) ------ Cryofiber Web Improved Heat Sink Large Storage Unit > --- WEAPON (2) ------- Power Maul Power Maul > --- INVENTORY (15) --- Light Ion Engine Aluminum Leg Small Storage Unit Structural Scanner Heavy Armor Plating Shock Rifle Small Laser Heavy Particle Cannon Firepult Assault Rifle Assault Rifle Hammer Hammer Peak State ------------ > --- POWER ------------ Ion Engine > --- PROPULSION ------- Aluminum Leg Aluminum Leg Aluminum Leg Aluminum Leg > --- UTILITY ---------- Cryofiber Web Improved Heat Sink Large Storage Unit Improved Light Armor Plating > --- WEAPON ----------- Firepult > --- INVENTORY -------- Light Ion Engine Light Ion Engine Aluminum Leg Small Storage Unit Structural Scanner Heavy Armor Plating Shock Rifle Small Laser Heavy Particle Cannon Assault Rifle Assault Rifle Hammer Hammer [Rating: 37] Favorites ----------- Power Ion Engine Engine Ion Engine Propulsion Aluminum Leg Leg Aluminum Leg Utility Large Storage Unit Device Improved Heat Sink Storage Large Storage Unit Protection Improved Light Armor Plating Weapon Assault Rifle Energy Gun Small Laser Energy Cannon Firepult Ballistic Gun Assault Rifle Impact Weapon Power Maul Build | -11 -10 -10 -10 -9 -8 ------- Run | Yrd Mat Min Exi Min Mat Slots Evolved 4 | . . . . . 4 Power . | . . . . . . Propulsion 2 | . . . . . 2 Utility 2 | . . . . . 2 Weapon . | . . . . . . Parts Attached 24 | 8 1 2 3 . 10 Power 3 | 1 . . . . 2 Engine 3 | 1 . . . . 2 Core . | . . . . . . Reactor . | . . . . . . Propulsion 6 | 2 . 1 . . 3 Treads . | . . . . . . Leg 6 | 2 . 1 . . 3 Wheel . | . . . . . . Hover . | . . . . . . Flight . | . . . . . . Utility 9 | 2 1 1 2 . 3 Device 4 | 1 . . 1 . 2 Storage 4 | 1 1 1 1 . . Processor . | . . . . . . Hackware . | . . . . . . Protection 1 | . . . . . 1 Artifact . | . . . . . . Weapon 6 | 3 . . 1 . 2 Energy Gun 1 | 1 . . . . . Energy Cannon 1 | . . . 1 . . Ballistic Gun 2 | 2 . . . . . Ballistic Cannon . | . . . . . . Launcher . | . . . . . . Special Weapon . | . . . . . . Impact Weapon 2 | . . . . . 2 Slashing Weapon . | . . . . . . Piercing Weapon . | . . . . . . Special Melee Weapon . | . . . . . . Unidentified Prototypes 1 | . . . 1 . . Parts Lost 8 | . . 1 . . 7 Power 2 | . . . . . 2 Propulsion 4 | . . . . . 4 Utility 2 | . . 1 . . 1 Weapon . | . . . . . . Highest Loss Streak 7 | . . 1 . . 7 To Critical Strikes . | . . . . . . Average Slot Usage (%) 83 | . 100 79 84 85 77 Engine 12 | . 14 14 14 14 8 Leg 28 | . 28 28 28 28 28 Device 12 | . 14 3 9 14 16 Storage 11 | . 14 5 14 14 9 Protection 1 | . . . . . 5 Energy Cannon 7 | . . . 9 14 8 Ballistic Gun 8 | . 28 28 9 . . Peak Build Rating 37 | 9 9 9 27 27 37 Average Rating 21 | 5 9 5 19 27 32 On Entrance 13 | . 9 9 6 27 27 Naked Turns . | . . . . . . Heaviest Build 52 | 15 30 30 48 48 52 Greatest Support 40 | 20 20 20 20 20 40 Greatest Overweight (x) 10 | 3 1 1 2 2 10 Average Overweight (x) . | . . . . 2 1 Largest Inventory Capacity 15 | 8 15 15 15 15 15 Average Capacity 12 | 7 9 6 12 15 15 Most Carried 15 | 3 4 6 8 9 15 Average Carried 7 | 1 3 5 6 8 10 Final Capacity 15 | 8 15 8 15 15 15 Final Carried 15 | 3 4 6 7 9 15 Class Distribution -------------------- 100% | Mutant Dominant Class ---------------- Mutant | -10/Materials Mutant | -10/Mines Mutant | -10/Exiles Mutant | -9/Mines Mutant | -8/Materials Resources | -11 -10 -10 -10 -9 -8 ----------- Run | Yrd Mat Min Exi Min Mat Matter Collected 481 | 289 40 91 . 40 21 Remotely . | . . . . . . Salvage Created 341 | 37 . 113 . . 191 Parts 16 | 5 . . . . 11 Haulers Intercepted . | . . . . . . Recyclers Shooed 1 | 1 . . . . . Parts Field Recycled . | . . . . . . Retrieved Matter . | . . . . . . Parts Self-Destructed . | . . . . . . Prevented . | . . . . . . Kills | -11 -10 -10 -10 -9 -8 ------- Run | Yrd Mat Min Exi Min Mat Combat Hostiles Destroyed 3 | . . . . . 3 AOE 3 | . . . . . 3 Classes Destroyed 4 | 1 . . . . 3 Worker 1 | . . . . . 1 Tunneler 3 | 2 . . . . 1 Grunt 2 | . . . . . 2 Sentry 1 | . . . . . 1 Best Kill Streak 2 | 2 . . . . 2 Combat Bots Only 2 | . . . . . 2 Max Kills in Single Turn 2 | 1 . . . . 2 Gunslinging . | . . . . . . Exploded 2 | . . . . . 2 Melee . | . . . . . . Uniques/NPCs Destroyed . | . . . . . . Combat | -11 -10 -10 -10 -9 -8 -------- Run | Yrd Mat Min Exi Min Mat Hostile Shots Fired 62 | . . 3 . . 59 Missed 23 | . . . . . 23 Damage Taken 1123 | . . 262 . . 861 Core 109 | . . 51 . . 58 Absorbed by Shields . | . . . . . . Core Remaining (%) 89 | 100 . . . 79 . Volleys Fired 25 | 6 1 13 . . 5 Largest 2 | 2 2 2 . . 1 Hottest 250 | 40 40 40 . . 250 Shots Fired 45 | 12 2 26 . . 5 Gun 40 | 12 2 26 . . . Cannon 5 | . . . . . 5 Launcher . | . . . . . . Special . | . . . . . . Kinetic 40 | 12 2 26 . . . Thermal 5 | . . . . . 5 Explosive . | . . . . . . Electromagnetic . | . . . . . . Robot Hit Streak 7 | 6 7 3 . . 3 Robot Miss Streak 3 | 1 1 3 . . 2 Penetration Max . | . . . . . . Secondary Targets . | . . . . . . Shots Hit Robots 26 | 10 1 12 . . 3 Core Hits 29 | 3 . 10 . . 16 Critical Kills . | . . . . . . Critical Parts Destroyed . | . . . . . . Critical Strikes . | . . . . . . Melee Attacks . | . . . . . . Impact . | . . . . . . Slashing . | . . . . . . Piercing . | . . . . . . Sneak Attacks . | . . . . . . Combat Hostiles . | . . . . . . Follow-up Attacks . | . . . . . . Damage Inflicted 713 | 120 15 143 . . 435 Guns 278 | 120 15 143 . . . Cannons 68 | . . . . . 68 Explosions 366 | . . . . . 366 Melee . | . . . . . . Ramming 1 | . . . . . 1 Kinetic 278 | 120 15 143 . . . Thermal 412 | . . . . . 412 Explosive . | . . . . . . Electromagnetic 22 | . . . . . 22 Impact . | . . . . . . Slashing . | . . . . . . Piercing . | . . . . . . Highest Corruption . | . . . . . . Average Corruption . | . . . . . . Corruption Purged . | . . . . . . Corruption Blocked . | . . . . . . Overload Shots . | . . . . . . Overflow Damage . | . . . . . . Projectiles . | . . . . . . Explosions . | . . . . . . Melee . | . . . . . . Knockbacks . | . . . . . . Impact . | . . . . . . Kinetic . | . . . . . . Secondary . | . . . . . . Self-Inflicted Damage 70 | . . . . . 70 Shots 8 | . . . . . 8 Rammed . | . . . . . . Targets Rammed 2 | . . . . . 2 Kicked 2 | . . . . . 2 Crushed . | . . . . . . Highest Temperature 332 | . . . . . 332 Average Temperature 124 | . . . . . 124 Received Heat Transfer 216 | . . . . . 216 Siege Activations . | . . . . . . Robots Corrupted . | . . . . . . Combat Hostiles . | . . . . . . Parts Fried . | . . . . . . Impact Corruptions . | . . . . . . Robots Melted . | . . . . . . Combat Hostiles . | . . . . . . Parts Melted 3 | . . . . . 3 Heat Transferred 2720 | . . . . . 2720 Parts Sabotaged . | . . . . . . Parts Stolen . | . . . . . . Parts Stripped . | . . . . . . Power Chain Reactions . | . . . . . . Alert | -11 -10 -10 -10 -9 -8 ------- Run | Yrd Mat Min Exi Min Mat Peak Influence 116 | 10 13 4 . . 116 Initial 6 | . 6 4 . . . Average 15 | 2 9 . . . 36 Maximum Alert Level . | . . . . . . Low Security (%) 100 | 100 100 100 . 100 100 Level 1 . | . . . . . . Level 2 . | . . . . . . Level 3 . | . . . . . . Level 4 . | . . . . . . Level 5 . | . . . . . . High Security . | . . . . . . Max Security . | . . . . . . Squads Dispatched 4 | . 1 . . . 3 Investigation . | . . . . . . Extermination . | . . . . . . Reinforcement 4 | . 1 . . . 3 Assault . | . . . . . . Garrison . | . . . . . . Intercept . | . . . . . . Searches Triggered . | . . . . . . Construction Impeded . | . . . . . . Haulers Reinforced . | . . . . . . Active Scanning Responses . | . . . . . . Cargo Convoy Interrupts . | . . . . . . Stealth | -11 -10 -10 -10 -9 -8 --------- Run | Yrd Mat Min Exi Min Mat Distress Signals 1 | . . . . . 1 Communications Jammed . | . . . . . . Distress Signals . | . . . . . . Times Spotted 16 | . 1 3 . . 12 Peak Tracking Total 6 | . 1 2 . . 6 Tactical Retreats . | . . . . . . Traps | -11 -10 -10 -10 -9 -8 ------- Run | Yrd Mat Min Exi Min Mat Traps Triggered . | . . . . . . Indirectly . | . . . . . . Trap Hack Attempts . | . . . . . . Triggered . | . . . . . . Disarmed . | . . . . . . Reprogrammed . | . . . . . . Reused . | . . . . . . Traps Extracted . | . . . . . . Installed . | . . . . . . Triggered . | . . . . . . Machines | -11 -10 -10 -10 -9 -8 ---------- Run | Yrd Mat Min Exi Min Mat Machines Disabled 2 | . . . . . 2 Max in Single Turn 2 | . . . . . 2 Machines Repaired . | . . . . . . Machines Dismantled . | . . . . . . Machines Sabotaged . | . . . . . . Overloaded Fab Kills . | . . . . . . Hacking | -11 -10 -10 -10 -9 -8 --------- Run | Yrd Mat Min Exi Min Mat Machines Accessed 8 | . 1 . . . 7 Terminals 6 | . 1 . . . 5 Fabricators . | . . . . . . Repair Stations 1 | . . . . . 1 Recycling Units . | . . . . . . Scanalyzers 1 | . . . . . 1 Garrison Access . | . . . . . . Total Hacks 21 | . 4 . . . 17 Successful 14 | . 2 . . . 12 Failed 7 | . 2 . . . 5 Catastrophic 1 | . . . . . 1 Database Lockouts . | . . . . . . Manual 11 | . 3 . 1 . 7 Terminals 17 | . 4 . . . 13 Fabricators . | . . . . . . Repair Stations 2 | . . . . . 2 Recycling Units . | . . . . . . Scanalyzers 2 | . . . . . 2 Garrison Access . | . . . . . . Terminal Hacks 5 | . 1 . . . 4 Branch Access Points 1 | . 1 . . . . Scanalyzer Index 1 | . . . . . 1 Locate Traps 2 | . . . . . 2 Registered Components 1 | . . . . . 1 Fabricator Hacks . | . . . . . . Repair Station Hacks 1 | . . . . . 1 Scan Component 1 | . . . . . 1 Recycling Unit Hacks . | . . . . . . Scanalyzer 2 | . . . . . 2 Insert Component 1 | . . . . . 1 Analyze 1 | . . . . . 1 Garrison Access Hacks . | . . . . . . Unauthorized Hacks 6 | . 1 . . . 5 Terminals 6 | . 1 . . . 5 Botnet 6 | . 1 . . . 5 Fabricators . | . . . . . . Repair Stations . | . . . . . . Recycling Units . | . . . . . . Scanalyzers . | . . . . . . Garrison Access . | . . . . . . Data Cores Recovered . | . . . . . . Used . | . . . . . . Hacking Detections 8 | . 1 . . . 7 Full Trace Events . | . . . . . . Feedback Events . | . . . . . . Feedback Blocked . | . . . . . . Robot Schematics Acquired . | . . . . . . Robots Built . | . . . . . . Authchips . | . . . . . . Time . | . . . . . . Total Robot Build Rating . | . . . . . . Part Schematics Acquired 1 | . . . . . 1 Parts Built . | . . . . . . Authchips . | . . . . . . Time . | . . . . . . Total Part Build Rating . | . . . . . . Parts Repaired . | . . . . . . Time . | . . . . . . Parts Recycled . | . . . . . . Recycled Matter . | . . . . . . Retrieved Matter . | . . . . . . Retrieved Components . | . . . . . . Parts Scanalyzed 1 | . . . . . 1 Part Schematics Acquired 1 | . . . . . 1 Parts Damaged . | . . . . . . Bothacking | -11 -10 -10 -10 -9 -8 ------------ Run | Yrd Mat Min Exi Min Mat Used RIF Installer . | . . . . . . Robots Hacked . | . . . . . . Non-combat . | . . . . . . Combat . | . . . . . . Robot Hacks Applied . | . . . . . . Relay Couplers Released . | . . . . . . Fabnet Peak Effective % . | . . . . . . Robots Rewired . | . . . . . . Allies Hacked . | . . . . . . Hacks Repelled . | . . . . . . Allies | -11 -10 -10 -10 -9 -8 -------- Run | Yrd Mat Min Exi Min Mat Total Allies . | . . . . . . Largest Group . | . . . . . . Highest-Rated Group . | . . . . . . Highest-Rated Ally . | . . . . . . Total Orders . | . . . . . . Ally Attacks . | . . . . . . Total Damage . | . . . . . . Kills . | . . . . . . Allies Corrupted . | . . . . . . Allies Melted . | . . . . . . Intel | -11 -10 -10 -10 -9 -8 ------- Run | Yrd Mat Min Exi Min Mat Robot Analysis Total . | . . . . . . Derelict Logs Recovered . | . . . . . . Drone Launches . | . . . . . . Drone Recoveries . | . . . . . . Exploration | -11 -10 -10 -10 -9 -8 ------------- Run | Yrd Mat Min Exi Min Mat Turns Passed 1770 | 89 198 173 464 343 503 Spaces Moved 913 | 47 147 105 246 132 236 Core 10 | 9 . . . . 1 Treads . | . . . . . . Legs 903 | 38 147 105 246 132 235 Wheels . | . . . . . . Hover . | . . . . . . Flight . | . . . . . . Fastest Speed 50 | 50 120 120 120 260 190 Average Speed 179 | 120 132 124 187 260 192 Slowest Speed 550 | 200 190 190 260 260 550 Overloaded Moves . | . . . . . . Propulsion Burnouts . | . . . . . . Robots Hopped . | . . . . . . Cave-ins Triggered . | . . . . . . Exploration Rate (%) 32 | 3 36 31 63 37 23 Regions Visited 5 Branch Regions 3 Pre-discovered Areas . | . . . . . . Known Exits Taken 1 | . 1 . . . . Unknown Exits Taken 4 | 1 . 1 1 1 . Scrap Searched 3 | . . 1 . 2 . Spaces Dug . | . . . . . . Terrain Destroyed 13 | . . . . . 13 Melee . | . . . . . . Projectile . | . . . . . . AOE 13 | . . . . . 13 Terrain Rammed . | . . . . . . Walls Destroyed . | . . . . . . Machines Disabled . | . . . . . . Actions | -11 -10 -10 -10 -9 -8 --------- Run | Yrd Mat Min Exi Min Mat Total 995 | 63 148 122 251 133 278 Wait 16 | . . . . . 16 Move 908 | 46 146 104 245 131 236 Hop . | . . . . . . Pick Up 11 | 3 . 1 . 2 5 Fast Attach 13 | 7 . . 1 . 5 Attach 8 | . . 1 2 . 5 Detach 8 | . . 1 3 . 4 Swap 3 | 1 1 1 . . . Drop . | . . . . . . Fire 25 | 6 1 13 . . 5 Melee . | . . . . . . Ram . | . . . . . . Kick 2 | . . . . . 2 Crush . | . . . . . . Escape Stasis . | . . . . . . Rewire 1 | . . 1 . . . Trap . | . . . . . . Miscellaneous . | . . . . . . Route ------- -11/Scrapyard -10/Materials (discovered 2 exits: [*Mat] / *Min) -10/Mines -10/Exiles (discovered 2 exits: [*Min x2]) -9/Mines -8/Materials (discovered 1 exit: [*Fac]) History --------- Turn | Location | Event 25 | -11/Scrapyard | Discovered new exit (range 14) 90 | -11/Scrapyard | Entered Materials 176 | -10/Materials | Discovered new exit (range 16) 189 | -10/Materials | Identified exit to Mines 225 | -10/Materials | Met 8R-AWN 288 | -10/Materials | Entered Mines 290 | -10/Mines | Followed 8R-AWN into the Mines 309 | -10/Mines | Assembled infested the area 321 | -10/Mines | Build established: Mutant 457 | -10/Mines | Discovered new exit (range 5) 461 | -10/Mines | Entered Exiles 481 | -10/Exiles | Discovered new exit (range 15) 494 | -10/Exiles | Welcomed by 8R-AWN 513 | -10/Exiles | Met EX-HEX 562 | -10/Exiles | Met EX-BIN 580 | -10/Exiles | Aligned with FarCom system 581 | -10/Exiles | Given EX-Vault access code 610 | -10/Exiles | Opened EX-Vault 627 | -10/Exiles | Found Prototype Energy Cannon 627 | -10/Exiles | Identified Firepult 683 | -10/Exiles | Warned to stay clear of 0b10 Research branches 769 | -10/Exiles | Met EX-DEC 904 | -10/Exiles | Discovered new exit (range 10) 925 | -10/Exiles | Left Exiles lab with Firepult 925 | -10/Exiles | Entered Mines 1185 | -9/Mines | Discovered new exit (range 9) 1268 | -9/Mines | Entered Materials 1268 | -8/Materials | Evolved 4 slots: Propulsion x2, Utility x2 1745 | -8/Materials | Discovered new exit (range 15) 1771 | -8/Materials | Self-destructed Last Messages --------------- 01758_ U-05 Engineer builds a Door. 01759_ Aluminum Leg destroyed. 01761_ Acquired Power Maul. 01762_ Penetrated by Slug. 01762_ Aluminum Leg destroyed. 01762_ U-05 Engineer lays Concrete. 01762_ Acquired 2 matter. 01763_ Critical hit (Burn: +37). 01763_ U-05 Engineer lays Concrete. 01764_ X-57 Shotgunner heat short circuits Nuclear Core. 01764_ Imp. Light Armor Plating destroyed. 01765_ Aluminum Leg destroyed. 01765_ U-05 Engineer lays Concrete. 01767_ Lgt. Ion Engine destroyed. 01767_ U-05 Engineer lays Concrete. 01768_ U-05 Engineer builds a Wall. 01769_ U-05 Engineer lays Concrete. 01771_ Slug penetrates G-47 Trooper. 01771_ G-47 Trooper knocked back. Map ----- +----------------------------------------------------+ | | | | | | | | | | | | | | | ????????????????????????????????????????########?? | | ??????????????????????????##????????????# #?? | | ??????????????????????????# #########???# "T" #?? | | ??????????????????????????# = #???# #?? | | ??????????????????????????# "" ! ##### #?? | | ??????????????????? ?????# "R[% " ! #?? | | ?????????????????#" ?????# " [ x # # [% ### | | ??????????????????" ????# # ####+ ### | | ?????????????? ???# ] ????# [ ^% ^ " | | ??????????????